bitfinex/quotes_ETHUSD_20250801
["timestamp","ask_amount","ask_price","bid_price","bid_amount"]
[1754038401998,1.9856,3625.4,3624.8,2.75870786]
[1754038402203,4.2,3625.3,3625.2,2.75846849]
[1754038402501,4.6741,3625.3,3625.2,5.75846849]
[1754038402701,4.2,3625.3,3625.2,5.75846849]
[1754038403304,8.58,3625.3,3625.2,7.74776777]
[1754038403506,4.2,3625.3,3625.2,35.89606849]
[1754038403689,0.001,3625.8,3625.7,5.75808809]
[1754038403872,4.381,3625.8,3625.7,5.75808809]
[1754038404291,0.55,3625.7,3625.4,0.1376]
[1754038404479,0.55,3625.5,3625.4,0.1376]
[1754038404681,7.85241,3625.5,3625.4,0.1376]
[1754038404876,10.61065024,3625.5,3625.4,0.1376]
[1754038405077,7.99001,3625.5,3625.0,2.75856952]
[1754038405278,0.1376,3625.1,3624.7,2.75883543]
[1754038405489,4.8531,3625.0,3624.9,5.75869679]
[1754038405705,0.1376,3624.9,3624.8,2.75870278]
[1754038407709,0.1376,3624.9,3624.8,15.75870278]
[1754038407874,0.1376,3624.9,3624.8,5.75870278]
[1754038408902,4.379,3625.0,3624.9,5.75869679]
[1754038409409,4.379,3625.0,3624.9,37.62419675]
[1754038409577,4.379,3625.0,3624.9,37.76179675]
[1754038409779,4.3376,3625.5,3625.4,5.75831632]
[1754038409976,4.2,3625.5,3625.4,35.75831632]
[1754038410204,4.2,3625.5,3625.4,36.33601632]
[1754038410510,4.2,3625.5,3625.4,38.62074908]
[1754038410695,4.2,3625.5,3624.9,4.378]
[1754038410895,0.4741,3625.4,3624.8,13.621]
[1754038411211,4.5146,3625.3,3624.8,0.1376]
[1754038411378,0.4741,3625.2,3625.0,2.75855208]
[1754038411580,0.6117,3625.1,3625.0,2.75855208]
[1754038412774,0.1376,3625.1,3625.0,2.75855208]
[1754038413913,4.2,3625.2,3625.1,2.75854459]
[1754038414786,4.2,3625.2,3625.1,32.89614459]
[1754038415010,8.576,3625.2,3625.1,38.62097735]
[1754038416110,4.2,3625.2,3625.1,26.95197735]
[1754038416407,4.2,3625.2,3625.1,19.89297735]
[1754038417025,4.376,3625.3,3625.2,35.75846849]
[1754038417240,4.376,3625.3,3625.2,14.97146849]
[1754038418300,4.376,3625.3,3625.2,15.85723022]
[1754038419983,4.376,3625.3,3625.2,14.97146849]
[1754038420319,4.376,3625.3,3624.6,2.75890461]
[1754038420320,4.8501,3625.3,3624.6,30.0]
[1754038420486,4.8501,3625.3,3624.9,0.1376]
[1754038420687,0.4741,3625.2,3625.0,2.75862068]
[1754038420921,4.376,3625.3,3625.1,2.75854459]
[1754038421125,4.376,3625.3,3625.2,2.75846849]
[1754038421541,4.8501,3625.3,3625.2,2.75846849]
[1754038422049,4.8501,3625.3,3625.1,2.75853501]
[1754038422209,0.4741,3625.2,3625.1,2.75853501]
[1754038422848,4.6741,3625.2,3625.1,2.75853501]
[1754038423452,4.2,3625.2,3625.1,35.75853501]
[1754038423758,8.574,3625.2,3625.1,38.48336777]
[1754038424316,8.574,3625.2,3625.1,38.62096777]
[1754038425212,8.573,3625.2,3625.1,38.62096777]
[1754038426352,8.573,3625.2,3625.1,35.89613501]
[1754038427237,11.5847,3625.2,3624.0,4.372]
[1754038427556,0.1376,3624.9,3624.8,7.456]
[1754038427709,0.1376,3624.9,3624.4,0.1376]
[1754038427710,4.5096,3624.9,3624.5,25.58200124]
[1754038427910,2.3241,3624.8,3624.7,25.581849]
[1754038428252,2.3241,3624.8,3624.7,22.823]
[1754038428413,3.00747,3624.8,3624.3,0.20843689]
[1754038428617,6.6961,3624.7,3624.5,2.75899505]
[1754038428955,0.55,3624.5,3624.3,0.20236792]
[1754038429137,6.6961,3624.4,3624.3,2.75915349]
[1754038429459,6.8337,3624.4,3624.3,2.75915349]
[1754038429639,6.8337,3624.4,3624.2,2.75921703]
[1754038429958,0.1376,3624.2,3624.1,5.75925173]
[1754038430118,4.9822,3624.2,3624.1,5.75925173]
[1754038430319,4.9822,3624.2,3624.1,2.75925173]
[1754038430541,4.9822,3624.2,3624.1,0.21129531]
[1754038430542,8.12207,3624.2,3624.1,0.21129531]
[1754038430727,8.12207,3624.2,3623.9,2.75941211]
[1754038431050,0.1376,3624.0,3623.5,0.1376]
[1754038431239,0.1376,3624.0,3622.9,14.371]
[1754038431240,4.371,3623.9,3623.6,2.75963439]
[1754038431554,6.2225,3623.9,3623.8,2.75953419]
[1754038431850,6.2225,3623.9,3623.6,0.20886626]
[1754038432152,2.3241,3623.8,3623.4,2.75976611]
[1754038432455,0.1376,3623.6,3623.5,2.7597625]
[1754038432695,0.6102,3623.6,3623.5,2.7597625]
[1754038432858,0.6102,3623.6,3623.3,2.75989738]
[1754038433054,0.4726,3623.5,3623.4,2.75983882]
[1754038433431,0.1376,3623.6,3623.5,2.75976266]
[1754038434417,0.6102,3623.6,3623.5,2.75976266]
[1754038434860,0.1376,3623.6,3623.5,2.75976266]
[1754038435241,0.1376,3623.6,3623.5,25.58276266]
[1754038435559,4.371,3623.6,3623.5,25.58276266]
[1754038435717,4.371,3623.6,3623.5,18.22776266]
[1754038435920,4.371,3623.6,3623.5,2.75976266]
[1754038436117,4.8436,3623.6,3623.5,2.75976266]
[1754038436752,4.371,3623.6,3623.5,2.75976266]
[1754038436966,4.371,3623.6,3623.5,26.44493231]
[1754038437149,0.1376,3624.0,3623.9,25.58245804]
[1754038437335,4.37,3624.0,3623.9,25.58245804]
[1754038437540,4.5076,3624.0,3623.9,25.58245804]
[1754038438242,4.37,3624.0,3623.9,28.58245804]
[1754038439132,4.37,3624.0,3623.9,11.25445804]
[1754038439560,0.55,3623.9,3623.6,2.75963483]
[1754038439780,2.4617,3623.8,3623.6,2.75963483]
[1754038440063,6.6931,3623.7,3623.4,10.0]
[1754038440268,0.4726,3623.6,3623.5,2.75976266]
[1754038440428,4.369,3623.7,3623.6,2.75968649]
[1754038440628,4.369,3623.7,3623.5,2.75973502]
[1754038440966,4.8416,3623.7,3623.6,2.75968649]
[1754038441578,4.369,3623.7,3623.6,2.75968649]
[1754038441731,4.369,3623.7,3623.6,25.58268649]
[1754038442481,4.369,3623.7,3623.6,28.58268649]
[1754038443029,0.1376,3624.4,3623.8,32.823]
[1754038443225,0.4726,3624.7,3624.5,2.7589881]
[1754038443466,9.0416,3624.6,3624.5,2.7589881]
[1754038443672,9.1792,3624.6,3624.5,2.7589881]
[1754038444011,8.7066,3624.6,3624.5,2.7589881]
[1754038444329,8.569,3624.6,3624.5,32.7589881]
[1754038444536,8.569,3624.6,3624.5,36.78234983]
[1754038445031,8.569,3624.6,3624.5,37.00824983]
[1754038445682,8.569,3624.6,3624.5,36.78234983]
[1754038447248,8.569,3624.6,3624.5,35.8965881]
[1754038447553,8.569,3624.6,3624.5,11.3649881]
[1754038447808,8.569,3624.6,3624.5,11.5025881]
[1754038450978,8.569,3624.6,3624.5,5.8965881]
[1754038451594,8.569,3624.6,3624.5,14.8765881]
[1754038451768,10.8931,3624.6,3624.5,5.7589881]
[1754038452985,10.8931,3624.6,3624.5,2.7589881]
[1754038453443,10.8931,3624.6,3624.3,0.1376]
[1754038453444,0.55,3624.5,3624.3,0.1376]
[1754038453652,7.2391,3624.4,3623.3,0.91017504]
[1754038453990,4.2,3624.3,3624.1,2.75925024]
[1754038454283,4.6726,3624.3,3624.2,2.75922962]
[1754038454473,10.375167,3624.3,3624.2,2.75922962]
[1754038454673,4.75,3624.2,3623.7,25.238]
[1754038454848,4.364,3624.1,3623.9,2.75944618]
[1754038455052,7.2381,3624.1,3624.0,2.75938189]
[1754038455301,4.914,3624.1,3624.0,2.75938189]
[1754038455481,5.0516,3624.1,3624.0,2.75938189]
[1754038455850,7.3757,3624.1,3623.8,2.75946506]
[1754038456049,2.3241,3624.0,3623.9,2.75941263]
[1754038456574,2.4617,3624.0,3623.9,2.75941263]
[1754038457380,2.4617,3624.0,3623.8,2.75952652]
[1754038457580,2.4617,3624.0,3623.4,2.75982335]
[1754038457581,0.1376,3623.8,3623.4,2.75982335]
[1754038457794,6.6642,3623.7,3623.3,0.88699095]
[1754038457985,2.3002,3623.6,3623.4,2.75979306]
[1754038458152,2.3002,3623.6,3623.3,0.68073904]
[1754038458153,2.4378,3623.6,3623.5,2.75976266]
[1754038458351,6.8008,3623.6,3623.5,2.75976266]
[1754038460873,6.8008,3623.6,3623.4,2.75981]
[1754038461204,6.8008,3623.6,3623.5,2.75976266]
[1754038461205,6.3545,3623.6,3623.5,2.75976266]
[1754038461897,6.8008,3623.6,3623.5,2.75976266]
[1754038463896,4.5006,3623.6,3623.5,2.75976266]
[1754038464101,4.5006,3623.6,3623.5,5.75976266]
[1754038464814,4.9469,3623.6,3623.5,2.75976266]
[1754038465108,4.9469,3623.6,3623.3,0.20519361]
[1754038465109,7.35049,3623.6,3623.3,0.20519361]
[1754038465318,5.05029,3623.6,3623.3,2.75986238]
[1754038465491,2.3002,3623.5,3623.3,2.75986238]
[1754038465693,4.362,3623.4,3623.2,2.75994525]
[1754038465895,2.3002,3623.3,3623.2,2.75992971]
[1754038466099,2.4378,3623.3,3623.2,2.75992971]
[1754038466510,0.55,3623.2,3623.1,0.20794942]
[1754038466723,7.2112,3623.2,3622.8,2.7602902]
[1754038466881,0.55,3623.0,3622.8,2.7602902]
[1754038467217,4.4994,3622.9,3622.8,5.7602902]
[1754038469219,4.9457,3622.9,3622.8,5.7602902]
[1754038469415,0.55,3622.8,3622.7,2.76032375]
[1754038469722,1.1347,3622.8,3622.7,2.76032375]
[1754038470419,1.1347,3622.8,3622.4,2.76059008]
[1754038470420,2.9886,3622.8,3622.4,2.76059008]
[1754038470624,6.6602,3622.7,3622.6,2.76044829]
[1754038470797,6.7986,3622.7,3622.6,2.76044829]
[1754038470997,4.9447,3622.7,3622.6,2.76044829]
[1754038472233,11.54807,3622.7,3622.2,0.20709163]
[1754038472394,2.3002,3622.6,3622.5,2.76051158]
[1754038472724,0.55,3622.3,3621.9,0.1384]
[1754038472892,7.2102,3622.2,3622.1,2.76082935]
[1754038473394,7.3486,3622.2,3622.1,2.76082935]
[1754038474090,7.3486,3622.2,3622.0,2.7608823]
[1754038474328,7.91876,3622.2,3622.1,2.76082935]
[1754038474534,8.05716,3622.2,3622.1,2.76082935]
[1754038474741,0.55,3622.1,3621.9,0.20704662]
[1754038474890,0.55,3622.1,3621.9,2.96802747]
[1754038474891,4.8063,3622.0,3621.9,2.96802747]
[1754038475094,0.55,3621.9,3621.6,2.76121051]
[1754038475295,0.55,3621.7,3621.6,2.76121051]
[1754038475828,0.1384,3621.8,3621.7,2.76113427]
[1754038475990,6.3513,3621.8,3621.7,2.76113427]
[1754038476191,6.3513,3621.8,3621.6,2.76116212]
[1754038476395,2.8502,3621.7,3621.6,2.97247817]
[1754038476830,4.4974,3621.8,3621.7,2.76113427]
[1754038477005,4.359,3621.8,3621.7,35.76113427]
[1754038477208,4.359,3621.8,3621.7,35.89953427]
[1754038477533,1.21821499,3621.8,3621.7,35.89953427]
[1754038477723,4.2,3622.0,3621.9,35.7609818]
[1754038477900,8.559,3622.0,3621.9,38.48581456]
[1754038479202,6.631,3622.7,3622.3,3.0]
[1754038479398,4.359,3623.2,3623.0,2.76014352]
[1754038479601,2.3002,3623.8,3623.0,2.76014352]
[1754038479602,4.359,3623.1,3623.0,2.76014352]
[1754038479936,6.6592,3623.1,3622.3,3.0]
[1754038480232,4.909,3623.1,3623.0,2.76014352]
[1754038480432,1.8539,3623.7,3623.5,2.75976266]
[1754038480748,4.359,3623.6,3623.5,2.75976266]
[1754038480916,0.4463,3624.0,3622.9,0.2259]
[1754038480917,0.4463,3624.0,3623.9,2.75945804]
[1754038481246,4.8043,3624.0,3623.9,2.75945804]
[1754038481892,0.4463,3624.4,3624.1,2.75930575]
[1754038482094,0.55,3624.2,3624.1,2.75930575]
[1754038482324,4.358,3624.2,3624.1,2.75930575]
[1754038482802,4.908,3624.2,3624.1,2.75930575]
[1754038483009,4.358,3624.2,3624.1,2.75930575]
[1754038483338,4.358,3624.2,3624.1,3.33268906]
[1754038483547,6.6582,3624.2,3624.1,2.75930575]
[1754038483849,7.2082,3624.2,3624.1,2.96990117]
[1754038484146,7.2082,3624.2,3624.1,0.21059542]
[1754038484351,7.92902,3624.2,3624.1,0.21059542]
[1754038484649,0.55,3624.1,3623.5,2.75975551]
[1754038484810,6.6572,3624.0,3623.4,2.75981157]
[1754038485134,0.55,3623.8,3623.5,2.75976176]
[1754038485365,0.55,3623.6,3623.5,2.75976176]
[1754038485836,2.8502,3623.6,3623.5,2.96600564]
[1754038486199,7.0502,3623.6,3623.5,2.96600564]
[1754038486448,8.19092,3623.6,3623.5,2.96600564]
[1754038486952,8.19092,3623.6,3623.5,0.20624388]
[1754038487096,8.19092,3623.6,3623.3,2.7599068]
[1754038487302,0.55,3623.4,3623.3,2.7599068]
[1754038487606,0.55,3623.4,3622.1,0.2259]
[1754038487913,0.55,3623.2,3621.8,15.597]
[1754038488098,0.55,3623.2,3622.1,2.76082879]
[1754038488099,2.76032545,3622.8,3622.1,2.76082879]
[1754038488297,0.55,3622.6,3622.1,2.76082879]
[1754038488546,0.55,3622.4,3622.0,2.76089361]
[1754038488754,0.55,3622.2,3621.9,2.76095479]
[1754038488899,4.356,3622.1,3621.8,3.0]
[1754038489120,4.8221,3622.1,3621.7,3.20259685]
[1754038489321,3.0015,3622.0,3621.7,0.20259685]
[1754038489632,3.0015,3622.0,3621.4,2.7613042]
[1754038489633,0.55,3621.8,3621.2,5.76149309]
[1754038489954,0.55,3621.6,3621.2,0.1384]
[1754038490135,0.1384,3621.3,3621.2,5.96488127]
[1754038490456,0.1384,3621.3,3621.2,0.20338428]
[1754038490457,7.0298,3621.3,3621.2,0.20338428]
[1754038490658,0.55,3621.2,3620.9,2.76174019]
[1754038490856,4.906,3621.1,3621.0,27.659]
[1754038491159,4.906,3621.1,3620.9,2.76174019]
[1754038491160,5.0444,3621.1,3619.7,4.356]
[1754038491367,5.0444,3621.1,3620.3,0.1384]
[1754038491532,0.55,3621.0,3620.5,2.76198611]
[1754038491721,4.906,3621.1,3620.2,2.76227551]
[1754038491722,0.1384,3620.8,3620.4,2.76210235]
[1754038492059,0.1384,3620.5,3620.3,2.76220202]
[1754038492246,4.356,3620.4,3620.3,2.76220202]
[1754038492429,4.356,3620.4,3620.2,2.76225249]
[1754038492638,4.356,3620.4,3620.3,2.76220202]
[1754038492882,4.356,3620.4,3619.8,0.4356]
[1754038492883,4.356,3620.4,3620.2,2.76227011]
[1754038493051,0.1384,3620.3,3620.1,2.76235463]
[1754038493356,0.1384,3620.3,3620.2,5.76227832]
[1754038493558,0.1384,3620.3,3620.1,2.76232787]
[1754038493717,0.1384,3620.3,3620.2,2.76227832]
[1754038493918,0.1384,3620.3,3620.1,3.0]
[1754038494150,0.6045,3620.3,3620.2,2.76227832]
[1754038494623,0.6045,3620.3,3620.2,9.76227832]
[1754038494824,0.6045,3620.3,3620.2,7.20959126]
[1754038494825,3.1399,3620.3,3620.2,7.20959126]
[1754038495054,3.63595,3620.3,3620.2,9.97186958]
[1754038495258,0.1384,3620.3,3620.2,9.97186958]
[1754038495441,4.4944,3620.3,3620.2,9.97186958]
[1754038495657,4.4944,3620.3,3620.2,12.97186958]
[1754038496863,4.4944,3620.3,3620.2,5.97186958]
[1754038497745,0.1384,3620.3,3620.2,5.97186958]
[1754038497956,4.2,3620.7,3620.6,5.76197315]
[1754038498276,4.2,3621.1,3621.0,5.76166804]
[1754038498435,8.6944,3621.1,3621.0,5.76166804]
[1754038499948,4.3384,3621.1,3621.0,35.76166804]
[1754038500180,8.6944,3621.1,3621.0,35.76166804]
[1754038500416,8.6944,3621.1,3621.0,37.49883494]
[1754038500417,4.4944,3621.1,3621.0,37.49883494]
[1754038500536,0.1384,3621.1,3621.0,37.49883494]
[1754038500737,4.356,3621.1,3621.0,1.8755669]
[1754038500936,4.2,3621.4,3621.3,32.76143926]
[1754038501175,4.2,3621.5,3621.4,32.761363]
[1754038501579,0.1384,3621.8,3621.7,2.76113427]
[1754038501872,4.4944,3621.8,3621.7,2.76113427]
[1754038502040,4.356,3621.8,3621.7,2.76113427]
[1754038502235,4.356,3621.8,3621.3,10.0]
[1754038502433,0.1384,3621.6,3621.5,2.76128675]
[1754038502638,4.356,3621.8,3621.7,2.76113427]
[1754038502839,6.8075,3621.8,3621.7,2.76113427]
[1754038503070,6.9459,3621.8,3621.6,2.76119015]
[1754038503275,4.356,3621.8,3621.1,3.0]
[1754038503482,0.1384,3621.5,3621.4,5.761363]
[1754038503642,4.4944,3621.5,3621.4,5.761363]
[1754038503970,4.4944,3621.5,3620.5,2.76198491]
[1754038503971,11.1459,3621.5,3621.3,2.761407]
[1754038504196,4.11609,3621.4,3621.3,2.76143926]
[1754038504373,3.1399,3621.4,3621.3,2.76143926]
[1754038504840,7.3399,3621.4,3621.3,2.76143926]
[1754038505036,4.3384,3621.4,3621.3,2.76143926]
[1754038505240,8.555,3621.4,3621.3,35.76143926]
[1754038505692,11.0065,3621.4,3621.3,5.76143926]
[1754038505836,8.555,3621.4,3621.3,5.76143926]
[1754038506481,10.5404,3621.4,3621.3,5.76143926]
[1754038506684,10.5404,3621.4,3621.3,2.76143926]
[1754038506849,11.0065,3621.4,3621.3,2.76143926]
[1754038508938,11.0065,3621.4,3620.8,5.90016285]
[1754038509142,2.4515,3621.3,3621.0,5.76166279]
[1754038509356,0.1384,3621.1,3621.0,2.76166804]
[1754038509505,2.1238,3621.1,3621.0,5.76166804]
[1754038509711,2.5899,3621.1,3621.0,3.0]
[1754038509954,7.90429,3621.1,3620.7,2.76184723]
[1754038510110,6.8055,3621.0,3620.7,2.76184723]
[1754038510441,4.3384,3620.9,3620.7,2.76184723]
[1754038510649,4.354,3620.8,3620.4,2.76209988]
[1754038510803,4.354,3620.8,3620.2,0.20687552]
[1754038510804,2.4515,3620.7,3620.2,0.20687552]
[1754038511002,2.4515,3620.7,3619.1,10.0]
[1754038511003,4.904,3620.6,3619.7,3.0]
[1754038511202,0.1384,3620.3,3620.1,3.0]
[1754038511416,0.1384,3620.3,3620.2,12.76227309]
[1754038511616,6.4778,3620.3,3620.2,5.76227309]
[1754038512207,4.4924,3620.3,3620.2,3.0]
[1754038512411,6.4778,3620.3,3620.2,5.76227832]
[1754038512609,6.9439,3620.3,3620.2,0.20739391]
[1754038512825,6.9439,3620.3,3620.1,2.76229017]
[1754038513043,4.354,3620.3,3620.2,2.76227832]
[1754038513249,4.354,3620.3,3619.9,10.785]
[1754038513412,4.354,3620.3,3619.9,2.76247504]
[1754038513413,0.1384,3620.1,3619.9,2.76247504]
[1754038513609,4.354,3620.0,3619.9,2.76250725]
[1754038513862,7.3555,3620.0,3619.9,0.20322612]
[1754038514012,7.3555,3620.0,3619.9,2.76250725]
[1754038514514,7.3555,3620.0,3619.8,2.7625544]
[1754038514717,0.1384,3619.8,3619.7,35.76265988]
[1754038514938,4.4924,3619.8,3619.7,35.76265988]
[1754038515141,4.4924,3619.8,3619.2,0.1384]
[1754038515325,4.354,3619.8,3619.7,2.76265988]
[1754038515531,4.354,3619.8,3619.7,6.67465988]
[1754038515733,4.4924,3619.8,3619.7,6.67465988]
[1754038516659,7.3634,3619.8,3619.7,0.20319716]
[1754038516854,7.81264,3619.8,3619.4,2.76287911]
[1754038517055,2.871,3619.7,3619.4,2.76287911]
[1754038517222,0.1384,3619.5,3619.4,5.76287911]
[1754038517425,2.4594,3619.5,3619.4,3.0]
[1754038517819,2.4594,3619.5,3619.1,2.76309549]
[1754038518021,2.4594,3619.5,3618.7,0.1384]
[1754038518022,6.675,3619.4,3619.3,3.0]
[1754038518223,0.1384,3619.2,3619.1,2.76307013]
[1754038518428,4.354,3619.2,3619.1,2.76307013]
[1754038518658,6.2378,3619.2,3619.1,2.76307013]
[1754038518960,6.675,3619.2,3619.0,5.97279602]
[1754038519165,2.321,3619.1,3618.8,2.76331648]
[1754038519379,6.8134,3619.0,3618.9,3.912]
[1754038519546,6.8134,3619.0,3618.9,0.21192991]
[1754038519736,6.8134,3619.0,3618.6,3.0]
[1754038519737,6.8134,3619.0,3618.8,2.76334113]
[1754038519939,2.321,3618.9,3618.6,2.76345147]
[1754038520146,0.55,3619.3,3618.5,5.76350573]
[1754038520363,0.55,3619.1,3618.8,3.0]
[1754038520563,0.55,3619.1,3618.3,0.84262047]
[1754038520564,0.55,3618.9,3617.5,2.76433101]
[1754038520773,0.1384,3618.6,3618.5,2.76357606]
[1754038520984,6.3762,3618.6,3618.0,3.1384]
[1754038521131,6.8134,3618.6,3618.5,5.76357606]
[1754038521489,0.1384,3618.9,3618.7,2.76342332]
[1754038521784,0.1384,3619.6,3619.4,3.0]
[1754038521931,6.674,3619.5,3619.4,2.76288313]
[1754038522139,7.224,3619.5,3619.4,3.0]
[1754038522350,7.224,3619.5,3619.4,5.76288887]
[1754038522563,7.224,3619.5,3619.4,3.0]
[1754038523057,7.224,3619.5,3619.4,5.76288887]
[1754038523262,0.1384,3619.6,3619.5,5.76281254]
[1754038523575,0.4372,3620.2,3620.1,2.76235463]
[1754038523737,0.55,3620.1,3619.8,2.76258356]
[1754038524078,0.1384,3619.9,3619.8,2.76258356]
[1754038524367,0.1384,3619.9,3619.7,2.76263066]
[1754038524368,6.8134,3619.9,3619.7,2.76263066]
[1754038524572,6.8134,3619.9,3617.2,1.31661182]
[1754038524573,0.1384,3619.7,3618.8,2.76332415]
[1754038524772,7.225,3619.6,3619.5,3.0]
[1754038525135,7.3634,3619.6,3619.4,3.0]
[1754038525436,0.55,3619.4,3619.1,2.76306453]
[1754038525638,0.55,3619.4,3619.0,3.0]
[1754038525639,7.225,3619.3,3619.2,2.76304155]
[1754038526239,7.225,3619.3,3619.0,5.76319258]
[1754038526240,7.3634,3619.3,3618.6,3.912]
[1754038526469,0.1384,3619.1,3619.0,5.76313127]
[1754038526769,4.4914,3619.1,3619.0,5.76313127]
[1754038526975,6.3752,3619.1,3619.0,5.76313127]
[1754038527468,4.4914,3619.1,3619.0,5.76313127]
[1754038528030,4.4924,3619.1,3619.0,9.67513127]
[1754038528235,4.4924,3619.1,3619.0,10.91897246]
[1754038528635,4.4924,3619.1,3619.0,9.67513127]
[1754038529038,7.3634,3619.1,3619.0,3.0]
[1754038529460,7.3634,3619.1,3619.0,5.76319425]
[1754038529668,0.55,3619.0,3618.5,0.20906125]
[1754038529877,6.2368,3618.9,3618.8,2.76334696]
[1754038530046,6.674,3618.9,3618.8,5.76334696]
[1754038530251,6.8124,3618.9,3618.8,5.76334696]
[1754038530571,6.8124,3618.9,3618.8,3.0]
[1754038530768,0.55,3618.8,3618.7,2.76342332]
[1754038531151,0.55,3618.8,3618.7,5.76342332]
[1754038531152,0.6884,3618.8,3618.7,5.76342332]
[1754038531758,0.1384,3618.8,3618.7,5.76342332]
[1754038531959,4.2,3619.5,3619.4,2.76288887]
[1754038532274,6.674,3619.5,3619.4,5.76288887]
[1754038532452,6.8124,3619.5,3619.4,5.76288887]
[1754038532795,12.11364,3619.5,3618.9,2.76320246]
[1754038532941,2.321,3619.4,3618.7,2.76342332]
[1754038533139,9.5402,3619.3,3618.8,3.0]
[1754038533470,0.55,3618.8,3618.6,3.0]
[1754038533774,4.4914,3618.7,3618.6,3.0]
[1754038533964,4.4914,3618.7,3618.5,2.76357606]
[1754038534168,2.321,3618.6,3618.4,2.97215539]
[1754038534355,4.4914,3618.5,3618.4,2.76362843]
[1754038534551,6.8124,3618.5,3618.4,2.76362843]
[1754038535696,4.4914,3618.5,3618.4,2.76362843]
[1754038535858,4.4914,3618.5,3618.4,2.97176924]
[1754038536447,6.521,3619.3,3619.2,2.76304155]
[1754038536766,11.0114,3619.3,3618.6,3.0]
[1754038537094,0.55,3618.5,3618.4,0.20814081]
[1754038537291,4.902,3618.5,3618.4,2.97179325]
[1754038537448,4.902,3618.5,3618.4,2.76365244]
[1754038537793,4.352,3618.5,3618.4,5.76365244]
[1754038538266,7.223,3618.5,3618.4,5.97028286]
[1754038538849,11.423,3618.5,3618.4,5.97028286]
[1754038539288,10.9858,3618.5,3618.4,5.97028286]
[1754038539461,9.102,3618.5,3618.4,5.97028286]
[1754038541183,8.552,3618.5,3618.4,9.88228286]
[1754038542191,4.2,3618.5,3618.4,11.59592495]
[1754038543592,4.2,3618.5,3618.4,5.97028286]
[1754038543781,4.2,3618.5,3618.4,14.23428286]
[1754038545253,6.521,3618.5,3618.4,7.55863042]
[1754038545482,6.6594,3618.5,3618.4,0.20663042]
[1754038545678,6.6594,3618.5,3618.4,2.76365244]
[1754038545992,6.6594,3618.5,3618.4,0.20404323]
[1754038546204,6.6594,3618.5,3618.3,5.76369825]
[1754038546370,4.3384,3618.5,3618.4,2.76365244]
[1754038546781,4.3384,3618.5,3618.3,5.76371782]
[1754038546976,2.287,3618.4,3618.3,5.76371782]
[1754038547493,7.00467928,3618.4,3617.8,0.1384]
[1754038547697,4.6502,3618.3,3618.2,2.7638052]
[1754038547856,7.1754,3618.3,3618.2,3.0]
[1754038548859,7.1754,3618.3,3617.8,2.76404749]
[1754038549053,0.1384,3618.0,3617.8,0.209439]
[1754038549270,2.837,3617.9,3617.2,4.351]
[1754038549469,0.1384,3617.6,3617.5,12.76434001]
[1754038549760,6.1752,3617.6,3617.5,2.76434001]
[1754038549960,6.1752,3617.6,3617.2,3.912]
[1754038549961,6.6254,3617.6,3617.2,3.912]
[1754038550161,2.287,3617.5,3617.3,3.912]
[1754038550390,2.287,3617.5,3617.4,15.76441643]
[1754038550590,0.1384,3617.4,3617.2,7.11554678]
[1754038550801,0.1384,3617.4,3617.2,7.32561144]
[1754038551100,1.8368,3617.3,3617.2,8.40261144]
[1754038551297,2.287,3617.3,3617.2,5.97461144]
[1754038551796,0.1384,3617.4,3617.3,2.76449285]
[1754038552002,0.1384,3617.4,3617.3,15.76449285]
[1754038552298,0.1384,3617.4,3617.3,10.11549285]
[1754038552596,2.4254,3617.4,3617.3,5.76449285]
[1754038553099,1.9752,3617.4,3617.3,5.76449285]
[1754038553289,1.8368,3617.4,3617.3,5.76449285]
[1754038553484,9.101,3617.6,3617.5,2.76434001]
[1754038553884,10.9378,3617.6,3617.5,2.76434001]
[1754038554293,11.388,3617.6,3617.2,4.56106466]
[1754038554498,2.287,3617.5,3617.2,4.56106466]
[1754038554820,0.55,3617.3,3617.2,0.21006466]
[1754038555182,2.837,3617.3,3617.2,2.76456928]
[1754038555768,2.837,3617.3,3616.3,2.76519959]
[1754038555964,6.487,3617.2,3616.6,3.0]
[1754038556168,4.2,3617.2,3617.1,5.76464571]
[1754038556707,7.037,3617.2,3617.1,5.76464571]
[1754038557296,4.2,3617.2,3617.1,5.76464571]
[1754038557509,4.2,3617.2,3617.1,14.02764571]
[1754038557893,4.2,3617.2,3617.1,14.02664571]
[1754038558093,4.2,3617.2,3617.1,15.70578994]
[1754038559324,6.487,3617.2,3617.1,10.11564571]
[1754038559524,6.487,3617.2,3617.1,3.0]
[1754038559708,6.487,3617.2,3617.1,10.11464571]
[1754038560076,4.2,3617.2,3617.1,10.11464571]
[1754038560271,4.2,3617.2,3617.1,14.02664571]
[1754038560486,4.2,3617.2,3617.1,15.70578336]
[1754038561009,4.2,3617.2,3617.1,11.35578336]
[1754038561177,6.487,3617.2,3617.1,10.11464571]
[1754038561510,4.2,3617.2,3617.1,14.02664571]
[1754038561806,4.75,3617.6,3617.5,2.76434001]
[1754038562105,4.75,3617.6,3617.5,5.76434001]
[1754038562106,4.2,3617.6,3617.5,5.76434001]
[1754038562413,4.2,3617.6,3617.5,9.67634001]
[1754038562908,4.2,3617.6,3617.5,9.39334001]
[1754038563213,6.1752,3617.6,3617.5,9.39334001]
[1754038563625,6.1752,3617.6,3617.5,8.67134001]
[1754038565514,4.3384,3617.6,3617.5,8.67134001]
[1754038566098,4.2,3617.6,3617.5,8.67134001]
[1754038566407,4.2,3617.6,3617.5,10.38831649]
[1754038566773,4.2,3617.6,3617.5,10.24991649]
[1754038567193,4.2,3617.6,3617.5,14.59991649]
[1754038568410,4.2,3617.6,3617.5,13.02134001]
[1754038568772,4.2,3617.6,3617.5,8.67134001]
[1754038568978,6.6254,3617.6,3617.5,5.76434001]